[Event "MCR rapid mládeže 2023 U16"]
[Site "Harachov, Czech Republic"]
[Date "2023.09.09"]
[Round "5.6"]
[White "Martirosyan, David"]
[Black "Andrle, Filip"]
[Result "1/2-1/2"]
[TimeControl "20min+5s/move"]
[WhiteElo "1861"]
[BlackElo "1649"]

1. d4 {[%clk 00:20:07]} {[%emt 00:00:02]} d5 {[%clk 00:20:05]} {[%emt
00:00:05]} 2. c4 {[%clk 00:20:10]} {[%emt 00:00:02]} e6 {[%clk 00:20:08]}
{[%emt 00:00:02]} 3. Nc3 {[%clk 00:20:13]} {[%emt 00:00:02]} Nf6 {[%clk
00:20:09]} {[%emt 00:00:04]} 4. cxd5 {[%clk 00:20:17]} {[%emt 00:00:02]} exd5
{[%clk 00:20:08]} {[%emt 00:00:06]} 5. Bg5 {[%clk 00:20:13]} {[%emt 00:00:08]}
Be7 {[%clk 00:19:58]} {[%emt 00:00:15]} 6. e3 {[%clk 00:20:16]} {[%emt
00:00:02]} c6 {[%clk 00:19:44]} {[%emt 00:00:19]} 7. Bd3 {[%clk 00:20:19]}
{[%emt 00:00:02]} h6 {[%clk 00:19:22]} {[%emt 00:00:27]} 8. Bh4 {[%clk
00:20:21]} {[%emt 00:00:04]} O-O {[%clk 00:18:54]} {[%emt 00:00:32]} 9. Qc2
{[%clk 00:20:23]} {[%emt 00:00:03]} Re8 {[%clk 00:18:31]} {[%emt 00:00:28]} 10.
Nge2 {[%clk 00:20:22]} {[%emt 00:00:06]} Nbd7 {[%clk 00:17:57]} {[%emt
00:00:38]} 11. O-O {[%clk 00:20:13]} {[%emt 00:00:14]} Ne4 {[%clk 00:16:14]}
{[%emt 00:01:48]} 12. Bxe7 {[%clk 00:20:16]} {[%emt 00:00:03]} Qxe7 {[%clk
00:16:14]} {[%emt 00:00:05]} 13. Bxe4 {[%clk 00:20:04]} {[%emt 00:00:16]} dxe4
{[%clk 00:15:53]} {[%emt 00:00:27]} 14. Rfd1 {[%clk 00:20:08]} {[%emt
00:00:02]} Nb6 {[%clk 00:14:46]} {[%emt 00:01:12]} 15. d5 {[%clk 00:20:07]}
{[%emt 00:00:07]} Nxd5 {[%clk 00:13:59]} {[%emt 00:00:51]} 16. Nxd5 {[%clk
00:20:09]} {[%emt 00:00:03]} cxd5 {[%clk 00:13:58]} {[%emt 00:00:07]} 17. Rxd5
{[%clk 00:20:11]} {[%emt 00:00:03]} Bd7 {[%clk 00:11:22]} {[%emt 00:02:41]} 18.
Nd4 {[%clk 00:18:21]} {[%emt 00:01:56]} Rac8 {[%clk 00:09:54]} {[%emt
00:01:33]} 19. Qd2 {[%clk 00:17:49]} {[%emt 00:00:37]} Rc7 {[%clk 00:06:40]}
{[%emt 00:03:19]} 20. h3 {[%clk 00:17:05]} {[%emt 00:00:49]} Rec8 {[%clk
00:05:15]} {[%emt 00:01:30]} 21. Rd1 {[%clk 00:16:54]} {[%emt 00:00:16]} g6
{[%clk 00:03:38]} {[%emt 00:01:42]} 22. b3 {[%clk 00:13:53]} {[%emt 00:03:06]}
Qf6 {[%clk 00:02:00]} {[%emt 00:01:42]} 23. a3 {[%clk 00:08:03]} {[%emt
00:05:56]} Bc6 {[%clk 00:00:15]} {[%emt 00:01:49]} 24. Nxc6 {[%clk 00:07:58]}
{[%emt 00:00:09]} Rxc6 {[%clk 00:00:13]} {[%emt 00:00:08]} 25. Qd4 {[%clk
00:05:04]} {[%emt 00:02:59]} Qxd4 {[%clk 00:00:08]} {[%emt 00:00:11]} 26. R1xd4
{[%clk 00:05:07]} {[%emt 00:00:02]} Rc3 {[%clk 00:00:10]} {[%emt 00:00:02]} 27.
Rb5 {[%clk 00:05:03]} {[%emt 00:00:09]} R8c7 {[%clk 00:00:12]} {[%emt
00:00:04]} 28. Rxe4 {[%clk 00:04:58]} {[%emt 00:00:10]} f5 {[%clk 00:00:15]}
{[%emt 00:00:02]} 29. Ree5 {[%clk 00:04:12]} {[%emt 00:00:51]} Kf7 {[%clk
00:00:12]} {[%emt 00:00:07]} 30. a4 {[%clk 00:04:02]} {[%emt 00:00:16]} b6
{[%clk 00:00:15]} {[%emt 00:00:01]} 31. Kh2 {[%clk 00:02:42]} {[%emt 00:01:25]}
R7c6 {[%clk 00:00:13]} {[%emt 00:00:07]} 32. Rb4 {[%clk 00:02:12]} {[%emt
00:00:35]} Kf6 {[%clk 00:00:09]} {[%emt 00:00:09]} 33. Reb5 {[%emt 00:00:46]}
Rd6 {[%clk 00:00:10]} {[%emt 00:00:03]} 34. Rd4 {[%clk 00:01:19]} {[%emt
00:00:19]} Rxd4 {[%clk 00:00:10]} {[%emt 00:00:05]} 35. exd4 {[%clk 00:01:23]}
{[%emt 00:00:02]} Rd3 {[%clk 00:00:13]} {[%emt 00:00:01]} 36. a5 {[%clk
00:01:03]} {[%emt 00:00:26]} bxa5 {[%clk 00:00:07]} {[%emt 00:00:10]} 37. Rxa5
{[%clk 00:00:29]} {[%emt 00:00:39]} Rxb3 {[%clk 00:00:09]} {[%emt 00:00:03]} 38.
Rxa7 {[%clk 00:00:29]} {[%emt 00:00:06]} Rd3 {[%clk 00:00:09]} {[%emt
00:00:05]} 39. Ra6+ {[%clk 00:00:26]} {[%emt 00:00:07]} Kf7 {[%clk 00:00:10]}
{[%emt 00:00:04]} 40. Rd6 {[%clk 00:00:29]} {[%emt 00:00:02]} h5 {[%clk
00:00:09]} {[%emt 00:00:06]} 41. f3 {[%clk 00:00:31]} {[%emt 00:00:03]} g5
{[%clk 00:00:10]} {[%emt 00:00:04]} 42. Rd5 {[%clk 00:00:19]} {[%emt 00:00:18]}
Ke6 {[%clk 00:00:13]} {[%emt 00:00:02]} 43. Re5+ {[%clk 00:00:21]} {[%emt
00:00:03]} Kf6 {[%clk 00:00:16]} {[%emt 00:00:01]} 44. Rd5 {[%clk 00:00:25]}
{[%emt 00:00:01]} Ke5 {[%emt 00:00:33]} 1/2-1/2

[Event "MCR rapid mládeže 2023 U16"]
[Site "Harachov, Czech Republic"]
[Date "2023.09.09"]
[Round "5.7"]
[White "Setina, Vaclav"]
[Black "Krautschneider, Daniel Jan"]
[Result "1-0"]
[TimeControl "20min+5s/move"]
[WhiteElo "1876"]
[BlackElo "1419"]

1. e4 {[%clk 00:20:09]} {[%emt 00:01:12]} c5 {[%clk 00:20:09]} {[%emt
00:00:01]} 2. Nf3 {[%clk 00:20:11]} {[%emt 00:00:03]} Nc6 {[%clk 00:20:13]}
{[%emt 00:00:01]} 3. c3 {[%clk 00:20:15]} d5 {[%clk 00:20:16]} {[%emt
00:00:03]} 4. exd5 {[%clk 00:20:18]} {[%emt 00:00:02]} Qxd5 {[%clk 00:20:20]} 5.
d4 {[%clk 00:20:23]} cxd4 {[%clk 00:20:24]} {[%emt 00:00:02]} 6. cxd4 {[%clk
00:20:27]} Bg4 {[%clk 00:20:18]} {[%emt 00:00:10]} 7. Be2 {[%clk 00:20:30]}
{[%emt 00:00:01]} e6 {[%clk 00:20:14]} {[%emt 00:00:10]} 8. Nc3 {[%clk
00:20:33]} {[%emt 00:00:03]} Qd8 {[%clk 00:20:17]} {[%emt 00:00:01]} 9. O-O
{[%clk 00:20:36]} {[%emt 00:00:02]} Nf6 {[%clk 00:20:20]} {[%emt 00:00:02]} 10.
h3 {[%clk 00:20:39]} {[%emt 00:00:01]} Bf5 {[%clk 00:19:28]} {[%emt 00:00:58]}
11. Be3 {[%clk 00:20:41]} {[%emt 00:00:03]} Be7 {[%clk 00:19:29]} {[%emt
00:00:04]} 12. Qb3 {[%clk 00:20:19]} {[%emt 00:00:27]} Qd7 {[%clk 00:18:38]}
{[%emt 00:00:55]} 13. Ne5 {[%clk 00:17:25]} {[%emt 00:03:00]} Qc8 {[%clk
00:18:40]} {[%emt 00:00:03]} 14. Nxc6 {[%clk 00:17:27]} {[%emt 00:00:04]} bxc6
{[%clk 00:18:40]} {[%emt 00:00:05]} 15. Bf3 {[%clk 00:17:09]} {[%emt 00:00:23]}
O-O {[%clk 00:18:31]} {[%emt 00:00:14]} 16. Rac1 {[%clk 00:16:37]} {[%emt
00:00:36]} Rb8 {[%clk 00:18:19]} {[%emt 00:00:18]} 17. Qa4 {[%clk 00:15:30]}
{[%emt 00:01:12]} Rxb2 {[%clk 00:15:48]} {[%emt 00:02:36]} 18. Nd1 {[%clk
00:14:29]} {[%emt 00:01:05]} Rb7 {[%clk 00:12:08]} {[%emt 00:03:46]} 19. Bxc6
{[%clk 00:14:02]} {[%emt 00:00:32]} Rc7 {[%clk 00:10:59]} {[%emt 00:01:14]} 20.
Bf4 {[%clk 00:13:41]} {[%emt 00:00:26]} Ba3 {[%clk 00:09:59]} {[%emt 00:01:05]}
21. Bxc7 {[%clk 00:05:15]} {[%emt 00:08:31]} Bxc1 {[%clk 00:10:00]} {[%emt
00:00:03]} 22. Bd6 {[%clk 00:05:18]} {[%emt 00:00:03]} Bd3 {[%clk 00:09:20]}
{[%emt 00:00:45]} 23. Re1 {[%clk 00:02:42]} {[%emt 00:02:41]} Bd2 {[%clk
00:09:07]} {[%emt 00:00:18]} 24. Re5 {[%clk 00:02:47]} {[%emt 00:00:01]} Rd8
{[%clk 00:07:06]} {[%emt 00:02:05]} 25. Be7 {[%clk 00:02:49]} {[%emt 00:00:03]}
Nd7 {[%clk 00:07:09]} {[%emt 00:00:02]} 26. Rh5 {[%clk 00:02:24]} {[%emt
00:00:29]} Nf6 {[%clk 00:06:36]} {[%emt 00:00:39]} 27. Rc5 {[%clk 00:01:19]}
{[%emt 00:01:09]} Nd7 {[%clk 00:06:31]} {[%emt 00:00:10]} 28. Rh5 {[%emt
00:00:49]} g6 {[%emt 00:00:09]} 29. Rh4 {[%emt 00:00:02]} g5 30. Rg4 {[%emt
00:00:02]} f5 {[%emt 00:00:11]} 31. Rg3 {[%emt 00:00:02]} 1-0

[Event "MCR rapid mládeže 2023 U16"]
[Site "Harachov, Czech Republic"]
[Date "2023.09.09"]
[Round "5.8"]
[White "Novotny, Dominik"]
[Black "Topencik, Bruno"]
[Result "1-0"]
[TimeControl "20min+5s/move"]
[WhiteElo "1707"]
[BlackElo "1451"]

1. e4 {[%clk 00:20:08]} {[%emt 00:00:01]} e6 {[%clk 00:20:09]} {[%emt
00:00:02]} 2. Nf3 {[%clk 00:20:09]} {[%emt 00:00:04]} d5 {[%clk 00:20:12]}
{[%emt 00:00:03]} 3. Nc3 {[%clk 00:20:13]} {[%emt 00:00:01]} Nf6 {[%clk
00:19:32]} {[%emt 00:00:45]} 4. e5 {[%clk 00:20:16]} {[%emt 00:00:02]} Nfd7
{[%clk 00:19:35]} {[%emt 00:00:01]} 5. d4 {[%clk 00:20:16]} {[%emt 00:00:04]}
c5 {[%clk 00:19:06]} {[%emt 00:00:35]} 6. dxc5 {[%clk 00:19:54]} {[%emt
00:00:28]} Bxc5 {[%clk 00:18:56]} {[%emt 00:00:14]} 7. Bd3 {[%clk 00:19:48]}
{[%emt 00:00:12]} Nc6 {[%clk 00:18:49]} {[%emt 00:00:12]} 8. Bf4 {[%clk
00:19:32]} {[%emt 00:00:20]} Qb6 {[%clk 00:17:44]} {[%emt 00:01:10]} 9. O-O
{[%clk 00:19:19]} {[%emt 00:00:18]} Qxb2 {[%clk 00:17:02]} {[%emt 00:00:46]} 10.
Nb5 {[%clk 00:18:08]} {[%emt 00:01:16]} Rb8 {[%clk 00:14:01]} {[%emt 00:03:06]}
11. a3 {[%clk 00:13:22]} {[%emt 00:04:51]} a6 {[%clk 00:11:42]} {[%emt
00:02:24]} 12. Qd2 {[%clk 00:11:21]} {[%emt 00:02:07]} Ndxe5 {[%clk 00:10:35]}
{[%emt 00:01:11]} 13. Nxe5 {[%clk 00:09:04]} {[%emt 00:02:22]} Nxe5 {[%clk
00:10:11]} {[%emt 00:00:30]} 14. Rfb1 {[%clk 00:08:44]} {[%emt 00:00:25]} Nf3+
{[%clk 00:07:43]} {[%emt 00:02:33]} 15. gxf3 {[%clk 00:08:26]} {[%emt
00:00:23]} Qf6 {[%clk 00:07:46]} {[%emt 00:00:02]} 16. Bxb8 {[%clk 00:07:22]}
{[%emt 00:01:09]} e5 {[%clk 00:07:46]} {[%emt 00:00:04]} 17. Bxe5 {[%clk
00:05:59]} {[%emt 00:01:28]} Qxf3 {[%clk 00:07:40]} {[%emt 00:00:11]} 18. Qe2
{[%clk 00:05:15]} {[%emt 00:00:49]} Qh3 {[%clk 00:07:22]} {[%emt 00:00:23]} 19.
Bd6+ {[%clk 00:04:40]} {[%emt 00:00:41]} Be6 {[%clk 00:07:25]} {[%emt
00:00:02]} 20. Bxc5 {[%clk 00:03:56]} {[%emt 00:00:49]} axb5 {[%clk 00:07:23]}
{[%emt 00:00:06]} 21. Bxb5+ {[%clk 00:03:01]} {[%emt 00:01:00]} Kd8 {[%clk
00:07:26]} {[%emt 00:00:02]} 22. Qe5 {[%clk 00:02:47]} {[%emt 00:00:19]} h5
{[%clk 00:07:01]} {[%emt 00:00:29]} 23. Qb8+ {[%clk 00:02:34]} {[%emt
00:00:19]} Bc8 {[%clk 00:06:51]} {[%emt 00:00:15]} 24. Qd6+ {[%clk 00:02:34]}
{[%emt 00:00:05]} Bd7 {[%clk 00:06:55]} {[%emt 00:00:02]} 25. Qxd7+ {[%clk
00:02:32]} {[%emt 00:00:07]} 1-0

[Event "MCR rapid mládeže 2023 U16"]
[Site "Harachov, Czech Republic"]
[Date "2023.09.09"]
[Round "5.9"]
[White "Barteckova, Valerie"]
[Black "Mikesova, Lenka"]
[Result "1-0"]
[TimeControl "20min+5s/move"]
[WhiteElo "1498"]
[BlackElo "1410"]

1. d4 {[%clk 00:20:08]} {[%emt 00:00:01]} d5 {[%clk 00:20:09]} {[%emt
00:00:01]} 2. Nf3 {[%clk 00:20:12]} {[%emt 00:00:02]} Nc6 {[%clk 00:20:11]}
{[%emt 00:00:03]} 3. Bf4 {[%clk 00:20:14]} {[%emt 00:00:03]} Bg4 {[%clk
00:19:53]} {[%emt 00:00:23]} 4. e3 {[%clk 00:20:15]} {[%emt 00:00:04]} e6
{[%clk 00:19:10]} {[%emt 00:00:48]} 5. c3 {[%clk 00:20:18]} {[%emt 00:00:01]}
Bd6 {[%clk 00:18:54]} {[%emt 00:00:21]} 6. Bg3 {[%clk 00:20:20]} {[%emt
00:00:02]} Nf6 {[%clk 00:18:43]} {[%emt 00:00:18]} 7. Bd3 {[%clk 00:20:22]}
{[%emt 00:00:02]} Ne4 {[%clk 00:18:02]} {[%emt 00:00:45]} 8. Nbd2 {[%clk
00:20:06]} {[%emt 00:00:21]} Nxd2 {[%clk 00:16:48]} {[%emt 00:01:19]} 9. Qxd2
{[%clk 00:19:58]} {[%emt 00:00:13]} Bxf3 {[%clk 00:15:55]} {[%emt 00:00:58]} 10.
gxf3 {[%clk 00:20:02]} {[%emt 00:00:02]} e5 {[%clk 00:15:27]} {[%emt 00:00:33]}
11. Bc2 {[%clk 00:17:39]} {[%emt 00:02:27]} exd4 {[%clk 00:15:16]} {[%emt
00:00:17]} 12. exd4 {[%clk 00:17:22]} {[%emt 00:00:23]} Qe7+ {[%clk 00:14:15]}
{[%emt 00:01:05]} 13. Qe3 {[%clk 00:17:06]} {[%emt 00:00:15]} O-O-O {[%clk
00:13:18]} {[%emt 00:01:08]} 14. O-O-O {[%clk 00:17:00]} {[%emt 00:00:12]} Rhe8
{[%clk 00:10:45]} {[%emt 00:02:37]} 15. Rde1 {[%clk 00:16:31]} {[%emt
00:00:31]} Qd7 {[%clk 00:08:05]} {[%emt 00:02:48]} 16. Qd3 {[%clk 00:16:14]}
{[%emt 00:00:18]} h6 {[%clk 00:07:15]} {[%emt 00:01:00]} 17. Qh7 {[%clk
00:14:27]} {[%emt 00:01:44]} Rh8 {[%clk 00:05:37]} {[%emt 00:01:51]} 18. Qxg7
{[%clk 00:13:13]} {[%emt 00:01:18]} Rdg8 {[%clk 00:05:17]} {[%emt 00:00:25]} 19.
Qf6 {[%clk 00:13:12]} {[%emt 00:00:03]} Be7 {[%clk 00:04:59]} {[%emt 00:00:27]}
20. Qf5 {[%clk 00:11:57]} {[%emt 00:01:18]} Qxf5 {[%clk 00:04:25]} {[%emt
00:00:41]} 21. Bxf5+ {[%clk 00:12:01]} {[%emt 00:00:01]} Kb8 {[%clk 00:04:28]}
{[%emt 00:00:02]} 22. Bd3 {[%clk 00:11:45]} {[%emt 00:00:16]} h5 {[%clk
00:04:11]} {[%emt 00:00:28]} 23. Rhg1 {[%clk 00:10:56]} {[%emt 00:00:54]} Bg5+
{[%clk 00:03:45]} {[%emt 00:00:31]} 24. Kd1 {[%clk 00:10:31]} {[%emt 00:00:27]}
f6 {[%clk 00:02:30]} {[%emt 00:01:24]} 25. h4 {[%clk 00:09:48]} {[%emt
00:00:47]} Bh6 {[%clk 00:02:29]} {[%emt 00:00:06]} 26. Bh2 {[%clk 00:09:37]}
{[%emt 00:00:15]} Nd8 {[%clk 00:02:01]} {[%emt 00:00:34]} 27. Rxg8 {[%clk
00:09:24]} {[%emt 00:00:18]} Rxg8 {[%clk 00:02:03]} {[%emt 00:00:03]} 28. Re7
{[%clk 00:09:04]} {[%emt 00:00:24]} Nc6 {[%clk 00:00:46]} {[%emt 00:01:23]} 29.
Bxc7+ {[%clk 00:07:57]} {[%emt 00:01:12]} Ka8 {[%clk 00:00:49]} {[%emt
00:00:02]} 30. Rh7 {[%clk 00:07:23]} {[%emt 00:00:36]} Rg1+ {[%clk 00:00:14]}
{[%emt 00:00:42]} 31. Ke2 {[%clk 00:07:26]} {[%emt 00:00:02]} Bg7 {[%clk
00:00:17]} {[%emt 00:00:02]} 32. Bg3 {[%clk 00:07:18]} {[%emt 00:00:14]} Bf8
{[%clk 00:00:10]} {[%emt 00:00:12]} 33. Rh8 {[%emt 00:00:03]} 1-0

[Event "MCR rapid mládeže 2023 U16"]
[Site "Harachov, Czech Republic"]
[Date "2023.09.09"]
[Round "5.10"]
[White "Buchtova, Viktorie"]
[Black "Horkova, Tereza"]
[Result "1/2-1/2"]
[TimeControl "20min+5s/move"]
[WhiteElo "1556"]
[BlackElo "1720"]

1. e4 {[%clk 00:20:09]} {[%emt 00:15:45]} c5 {[%clk 00:20:09]} {[%emt
00:00:01]} 2. Nf3 {[%emt 00:00:01]} e6 3. d4 {[%clk 00:20:17]} cxd4 {[%clk
00:20:17]} 4. Nxd4 {[%clk 00:20:22]} Nf6 {[%clk 00:20:21]} 5. Nc3 {[%clk
00:20:25]} {[%emt 00:00:02]} Nc6 {[%clk 00:20:26]} 6. Ndb5 {[%clk 00:20:30]}
{[%emt 00:00:02]} Bb4 {[%clk 00:20:30]} {[%emt 00:00:01]} 7. a3 {[%clk
00:20:34]} Bxc3+ {[%clk 00:20:32]} {[%emt 00:00:02]} 8. Nxc3 {[%clk 00:20:37]}
{[%emt 00:00:01]} d5 {[%clk 00:20:36]} {[%emt 00:00:01]} 9. exd5 {[%clk
00:20:38]} {[%emt 00:00:04]} exd5 {[%clk 00:20:36]} {[%emt 00:00:05]} 10. Bd3
{[%clk 00:20:42]} {[%emt 00:00:02]} O-O {[%clk 00:20:28]} {[%emt 00:00:12]} 11.
O-O {[%clk 00:20:39]} {[%emt 00:00:09]} d4 {[%clk 00:20:29]} {[%emt 00:00:04]}
12. Ne2 {[%clk 00:20:42]} {[%emt 00:00:02]} Bg4 {[%clk 00:20:32]} {[%emt
00:00:02]} 13. f3 {[%clk 00:19:35]} {[%emt 00:01:12]} Bh5 {[%clk 00:20:34]}
{[%emt 00:00:03]} 14. Nf4 {[%clk 00:19:29]} {[%emt 00:00:11]} Bg6 {[%clk
00:20:38]} {[%emt 00:00:02]} 15. Nxg6 {[%clk 00:19:33]} {[%emt 00:00:02]} hxg6
{[%clk 00:20:40]} {[%emt 00:00:02]} 16. Re1 {[%clk 00:19:29]} {[%emt 00:00:08]}
Qb6 {[%clk 00:19:54]} {[%emt 00:00:52]} 17. b4 {[%clk 00:15:48]} {[%emt
00:03:47]} Rfe8 {[%clk 00:18:14]} {[%emt 00:01:45]} 18. Bb2 {[%clk 00:15:50]}
{[%emt 00:00:03]} Rxe1+ {[%clk 00:16:42]} {[%emt 00:01:36]} 19. Qxe1 {[%clk
00:15:53]} {[%emt 00:00:03]} Rd8 {[%clk 00:14:23]} {[%emt 00:02:24]} 20. Rd1
{[%clk 00:15:49]} {[%emt 00:00:09]} a6 {[%clk 00:14:05]} {[%emt 00:00:23]} 21.
Qf2 {[%clk 00:15:34]} {[%emt 00:00:19]} Qc7 {[%clk 00:12:41]} {[%emt 00:01:27]}
22. Bf1 {[%clk 00:11:25]} {[%emt 00:04:18]} Qe5 {[%clk 00:10:57]} {[%emt
00:01:48]} 23. Qe2 {[%clk 00:09:11]} {[%emt 00:02:18]} Qg5 {[%clk 00:09:19]}
{[%emt 00:01:44]} 24. Qf2 {[%clk 00:08:24]} {[%emt 00:00:51]} Qe5 {[%clk
00:08:21]} {[%emt 00:01:03]} 25. Qe2 {[%clk 00:08:24]} {[%emt 00:00:05]} Qg5
{[%clk 00:08:10]} {[%emt 00:00:17]} 26. Qf2 {[%clk 00:08:11]} {[%emt 00:00:18]}
Qe5 {[%clk 00:06:49]} {[%emt 00:01:26]} 27. Qe2 {[%clk 00:07:40]} {[%emt
00:00:35]} Qg5 {[%clk 00:06:50]} {[%emt 00:00:04]} 1/2-1/2

[Event "MCR rapid mládeže 2023 U16"]
[Site "Harachov, Czech Republic"]
[Date "2023.09.09"]
[Round "5.11"]
[White "Kubatova, Beta"]
[Black "Kammova, Katerina"]
[Result "0-1"]
[TimeControl "20min+5s/move"]
[WhiteElo "1376"]
[BlackElo "1393"]

1. d4 {[%clk 00:20:07]} {[%emt 00:00:02]} e6 {[%clk 00:20:08]} {[%emt
00:00:02]} 2. c4 {[%clk 00:20:09]} {[%emt 00:00:03]} Nf6 {[%clk 00:20:10]}
{[%emt 00:00:03]} 3. Nc3 {[%clk 00:20:10]} {[%emt 00:00:04]} Bb4 {[%clk
00:20:12]} {[%emt 00:00:03]} 4. Qc2 {[%clk 00:20:11]} {[%emt 00:00:04]} Nc6
{[%clk 00:18:55]} {[%emt 00:01:21]} 5. Nf3 {[%clk 00:20:07]} {[%emt 00:00:10]}
b6 {[%clk 00:18:44]} {[%emt 00:00:16]} 6. Bg5 {[%clk 00:19:57]} {[%emt
00:00:14]} h6 {[%clk 00:17:56]} {[%emt 00:00:53]} 7. Bh4 {[%clk 00:19:57]}
{[%emt 00:00:06]} Bb7 {[%clk 00:17:50]} {[%emt 00:00:10]} 8. e4 {[%clk
00:18:43]} {[%emt 00:01:19]} Be7 {[%clk 00:16:45]} {[%emt 00:01:10]} 9. Be2
{[%clk 00:18:25]} {[%emt 00:00:23]} Nb4 {[%clk 00:16:21]} {[%emt 00:00:29]} 10.
Qb1 {[%clk 00:17:58]} {[%emt 00:00:33]} d5 {[%clk 00:15:00]} {[%emt 00:01:27]}
11. e5 {[%clk 00:17:16]} {[%emt 00:00:46]} Nd7 {[%clk 00:14:55]} {[%emt
00:00:10]} 12. Bxe7 {[%clk 00:17:11]} {[%emt 00:00:10]} Qxe7 {[%clk 00:14:58]}
{[%emt 00:00:02]} 13. a3 {[%clk 00:16:41]} {[%emt 00:00:36]} Na6 {[%clk
00:14:24]} {[%emt 00:00:38]} 14. cxd5 {[%clk 00:16:38]} {[%emt 00:00:09]} exd5
{[%clk 00:14:16]} {[%emt 00:00:13]} 15. Bxa6 {[%clk 00:15:51]} {[%emt
00:00:51]} Bxa6 {[%clk 00:14:18]} {[%emt 00:00:02]} 16. Nxd5 {[%clk 00:15:42]}
{[%emt 00:00:15]} Qd8 {[%clk 00:14:10]} {[%emt 00:00:13]} 17. b4 {[%clk
00:15:01]} {[%emt 00:00:46]} O-O {[%clk 00:13:32]} {[%emt 00:00:44]} 18. b5
{[%clk 00:15:00]} {[%emt 00:00:06]} Bb7 {[%clk 00:13:34]} {[%emt 00:00:02]} 19.
Qb3 {[%clk 00:15:02]} {[%emt 00:00:02]} Nxe5 {[%clk 00:12:47]} {[%emt
00:00:53]} 20. dxe5 {[%clk 00:14:56]} {[%emt 00:00:11]} Qxd5 {[%clk 00:12:45]}
{[%emt 00:00:06]} 21. Qxd5 {[%clk 00:14:44]} {[%emt 00:00:18]} Bxd5 {[%clk
00:12:49]} {[%emt 00:00:02]} 22. Rc1 {[%clk 00:14:35]} {[%emt 00:00:13]} Rac8
{[%clk 00:11:59]} {[%emt 00:00:55]} 23. O-O {[%clk 00:14:33]} {[%emt 00:00:08]}
c5 {[%clk 00:11:52]} {[%emt 00:00:11]} 24. bxc6 {[%clk 00:14:32]} {[%emt
00:00:06]} Bxc6 {[%clk 00:11:49]} {[%emt 00:00:08]} 25. Nd4 {[%clk 00:14:34]}
{[%emt 00:00:03]} Ba4 {[%clk 00:10:54]} {[%emt 00:01:00]} 26. h3 {[%clk
00:14:06]} {[%emt 00:00:33]} g6 {[%clk 00:10:50]} {[%emt 00:00:09]} 27. Rfe1
{[%clk 00:13:26]} {[%emt 00:00:45]} Rfd8 {[%clk 00:10:27]} {[%emt 00:00:28]} 28.
Nf3 {[%clk 00:13:21]} {[%emt 00:00:09]} Re8 {[%clk 00:10:28]} {[%emt 00:00:04]}
29. Rxc8 {[%clk 00:12:59]} {[%emt 00:00:27]} Rxc8 {[%clk 00:10:31]} {[%emt
00:00:02]} 30. e6 {[%clk 00:13:02]} {[%emt 00:00:02]} fxe6 {[%clk 00:09:52]}
{[%emt 00:00:44]} 31. Rxe6 {[%clk 00:13:05]} {[%emt 00:00:02]} Kf7 {[%clk
00:09:50]} {[%emt 00:00:07]} 32. Re3 {[%clk 00:12:55]} {[%emt 00:00:15]} Rc7
{[%clk 00:09:28]} {[%emt 00:00:27]} 33. Ne5+ {[%clk 00:12:51]} {[%emt
00:00:10]} Kg7 {[%clk 00:09:31]} {[%emt 00:00:01]} 34. Kh2 {[%clk 00:12:38]}
{[%emt 00:00:19]} Rc5 {[%clk 00:08:27]} {[%emt 00:01:09]} 35. Kg3 {[%clk
00:12:06]} {[%emt 00:00:37]} Rc7 {[%clk 00:08:10]} {[%emt 00:00:22]} 36. Nf3
{[%clk 00:11:54]} {[%emt 00:00:16]} Kf6 {[%clk 00:07:43]} {[%emt 00:00:32]} 37.
Nd4 {[%clk 00:11:52]} {[%emt 00:00:07]} Re7 {[%clk 00:06:29]} {[%emt 00:01:20]}
38. Rc3 {[%clk 00:09:01]} {[%emt 00:02:56]} Rd7 {[%clk 00:05:58]} {[%emt
00:00:37]} 39. Rc4 {[%clk 00:08:18]} {[%emt 00:00:48]} b5 {[%clk 00:05:24]}
{[%emt 00:00:38]} 40. Rb4 {[%clk 00:08:02]} {[%emt 00:00:22]} a5 {[%clk
00:05:26]} {[%emt 00:00:02]} 41. Rxa4 {[%clk 00:07:23]} {[%emt 00:00:45]} bxa4
{[%clk 00:05:30]} {[%emt 00:00:01]} 42. Nc6 {[%clk 00:07:24]} {[%emt 00:00:04]}
Rd3+ {[%clk 00:05:29]} {[%emt 00:00:06]} 43. Kh2 {[%clk 00:07:26]} {[%emt
00:00:04]} Rxa3 {[%clk 00:05:31]} {[%emt 00:00:02]} 44. Nxa5 {[%clk 00:07:29]}
{[%emt 00:00:02]} Rc3 {[%clk 00:05:26]} {[%emt 00:00:09]} 45. Nb7 {[%clk
00:07:27]} {[%emt 00:00:08]} Ke7 {[%clk 00:05:14]} {[%emt 00:00:17]} 46. Na5
{[%clk 00:07:20]} {[%emt 00:00:13]} a3 {[%clk 00:05:16]} {[%emt 00:00:03]} 0-1